[Event "Baku Open 2024"]
[Site "Baku"]
[Date "2024.07.03"]
[Round "5.19"]
[White "Ilamparthi A R"]
[Black "Bayramov, Zaur"]
[Result "1-0"]
[ECO "A08"]
[WhiteElo "2446"]
[BlackElo "2249"]
[Annotator "TA"]
[PlyCount "53"]
[EventDate "2024.06.29"]
[EventType "swiss"]
[EventCountry "AZE"]
[SourceTitle "playchess.com"]
[Source "ChessBase"]
[SourceQuality "1"]
[TimeControl "5400+30"]

{[%evp 14,53,27,0,36,28,31,15,31,-16,6,-24,36,32,34,35,76,88,116,111,137,112,177,178,174,173,177,170,169,170,164,168,405,422,381,408,475,481,486,478,345,306]} 1. e4 {[%emt 0:02:48]} c5 {[%emt 0:00:11]} 2. Nf3 {[%emt 0:00:08]} e6 {[%emt 0:00:11]} 3. d3 {[%emt 0:00:07]} Nc6 {[%emt 0:00:29]} 4. g3 {[%emt 0:00:25]} g6 {[%emt 0:00:51]} 5. Bg2 {[%emt 0:00:20]} Bg7 {[%emt 0:00:08]} 6. O-O {[%emt 0:00:10]} Nge7 {[%emt 0:00:23]} 7. c3 {[%emt 0:00:17]} d5 {[%emt 0:02:33]} 8. Qe2 {[%emt 0:00:33]} d4 {[%emt 0:01:30]} 9. e5 {[%emt 0:03:26]} dxc3 {[%emt 0:02:50]} 10. Nxc3 {[%emt 0:04:38]} O-O {[%emt 0:04:15] The position is equal.} 11. h4 {[%emt 0:01:44]} (11. Rd1 $14 {was preferrable.}) 11... Nf5 {[%emt 0:06:08]} 12. Bf4 {[%emt 0:03:30]} Nfd4 {[%emt 0:09:18]} (12... h5 $11) 13. Nxd4 $14 {[%emt 0:00:13]} Nxd4 {[%emt 0:00:18]} 14. Qd2 {[%emt 0:00:20]} Qa5 {[%emt 0:03:37] [#]} 15. h5 $1 {[%emt 0:07:22] Threatens to win with h6.} Re8 {[%emt 0:02:05]} (15... Qb6 16. h6) 16. Rfe1 {[%emt 0:02:47]} Rb8 {[%emt 0:03:25]} 17. Bh6 {[%emt 0:03:49]} Bh8 {[%emt 0:01:59]} (17... Bxh6 $16 {was worth a try.} 18. Qxh6 Qc7) 18. Bg5 $18 {[%emt 0:03:33]} Bd7 {[%emt 0:18:17]} 19. Bf6 {[%emt 0:06:58]} Bxf6 {[%emt 0:20:02]} 20. exf6 {[%emt 0:00:03]} Qd8 {[%emt 0:00:09]} 21. Ne4 {[%emt 0:14:04] [#] g4 is the strong threat.} Bc6 {[%emt 0:03:33]} 22. hxg6 $40 {[%emt 0:06:40][%mdl 128] White wants a kill.} (22. Nxc5 Bxg2 23. Kxg2 Qxf6 $15 (23... gxh5 24. Qg5+ Kh8 25. Qg7#)) 22... hxg6 $2 {[%emt 0:08:32]} (22... fxg6 23. f7+ (23. Nxc5 Qxf6 24. Ne4 Qg7 $11) 23... Kxf7) 23. Qh6 {[%emt 0:00:51]} (23. Nxc5 Bxg2 24. Kxg2 Qxf6 $15) 23... Nf5 {[%emt 0:00:02] Dodges Qg7+} 24. Qg5 {[%emt 0:00:08] g4 would now be deadly.} e5 {[%emt 0:00:53]} 25. g4 {[%emt 0:01:09]} ({Less strong is} 25. Nxc5 Qd6 $18) 25... Bxe4 {[%emt 0:00:45]} 26. dxe4 {[%emt 0:00:30]} ({Weaker is} 26. Bxe4 Ng7 $18) 26... Ng7 {[%emt 0:03:29]} (26... Nd4 27. Qh4 Re6 28. g5 $18) 27. Rad1 {[%emt 0:00:25] Weighted Error Value: White=0.07 (flawless) /Black=0.42.  Mistake:       	White=1     	Black=3      Inaccurate:     	White=1     	Black=2      OK:         	White=7     	Black=4      Best:        	White=4     	Black=2} 1-0

[Event "Baku Open 2024"]
[Site "Baku"]
[Date "2024.07.03"]
[Round "5.20"]
[White "Moosavifar, Seyed Abolfazl"]
[Black "Aradhya, Garg"]
[Result "1/2-1/2"]
[ECO "C54"]
[WhiteElo "2283"]
[BlackElo "2418"]
[Annotator "TA"]
[PlyCount "135"]
[EventDate "2024.06.29"]
[EventType "swiss"]
[EventCountry "AZE"]
[SourceTitle "playchess.com"]
[Source "ChessBase"]
[SourceQuality "1"]
[TimeControl "5400+30"]

{[%evp 15,135,27,39,23,34,0,70,47,39,68,182,189,370,166,152,128,135,145,92,107,189,106,132,131,132,107,99,123,168,120,120,105,112,116,96,91,92,93,158,158,241,173,144,131,159,130,136,134,124,66,65,14,12,13,72,42,65,10,12,8,8,8,8,8,8,0,0,0,0,0,42,43,45,45,45,49,54,44,45,44,44,0,9,8,8,0,0,0,0,0,0,0,0,0,0,0,0,0,0,0,0,0,0,0,0,0,0,0,0,0,0,0,0,0,0,0,0,0,0,0,0,0]} 1. e4 {[%emt 0:02:33]} e5 {[%emt 0:00:01]} 2. Nf3 {[%emt 0:00:04]} Nc6 {[%emt 0:00:05]} 3. Bc4 {[%emt 0:00:03]} Nf6 {[%emt 0:00:05]} 4. d3 {[%emt 0:00:03]} Bc5 {[%emt 0:00:03]} 5. c3 {[%emt 0:00:13]} O-O {[%emt 0:00:06]} 6. O-O {[%emt 0:00:06]} d5 {[%emt 0:00:03]} 7. exd5 {[%emt 0:00:08]} Nxd5 {[%emt 0:00:02]} 8. Re1 {[%emt 0:02:17]} Bg4 {[%emt 0:00:10]} 9. h3 {[%emt 0:02:25]} Bh5 {[%emt 0:00:02]} 10. b4 {[%emt 0:08:03]} Ndxb4 {[%emt 0:12:08]} 11. g4 $1 $14 {[%emt 0:03:43][%cal Oc3b4,Bg2g4,Bg4h5][%mdl 32] White is slightly better.} (11. cxb4 Bxf3 12. Qxf3 Bd4 $17) 11... e4 $1 {[%emt 0:04:17]} 12. cxb4 {[%emt 0:14:41]} (12. gxh5 exf3 13. Qxf3 Nc2 $19) 12... exf3 {[%emt 0:01:54]} (12... Bxf2+ $1 $14 13. Kxf2 exf3 14. Qxf3 (14. gxh5 Qh4+ 15. Kxf3 Qxh3+ 16. Kf4 Qh2+ 17. Kg4 Qg2+ 18. Kf4 Qf2+ 19. Kg4 Rae8 $15) 14... Bxg4 (14... Qd4+ 15. Be3 $11) 15. Qxg4 (15. hxg4 Qd4+ 16. Kg2 Qxa1 $14) 15... Qf6+ 16. Bf4 Qxa1) 13. bxc5 $18 {[%emt 0:06:13]} Qf6 $2 {[%emt 0:00:57]} (13... Bxg4 14. hxg4 Qd4 15. Qxf3 Qxa1) 14. Nc3 {[%emt 0:04:21]} (14. d4 Bxg4 15. hxg4 Rad8 $18) (14. Bd2 $142) 14... Qxc3 {[%emt 0:02:40]} 15. Bd2 {[%emt 0:00:06]} Qf6 {[%emt 0:00:56]} 16. gxh5 {[%emt 0:03:07]} Nd4 {[%emt 0:01:08]} 17. Re4 {[%emt 0:04:29] Wards off Qh4} Rae8 {[%emt 0:03:44]} (17... Ne2+ $16 18. Kh2 Rae8) 18. Rg4 {[%emt 0:04:22]} ({Better is} 18. Bc3 $1 $18 {[%cal Rc3d4]} Rxe4 19. dxe4 Ne2+ (19... Qg5+ 20. Kf1 $16) 20. Bxe2 Qg5+ 21. Kf1 Qg2+ 22. Ke1 fxe2 23. Qd4 (23. Qxe2 Re8 $18) (23. Kxe2 $2 Qxe4+ 24. Kf1 Qh1+ 25. Ke2 Re8+ 26. Kd2 Rd8+ 27. Kc2 Qe4+ 28. Kb2 Rxd1 $19)) 18... Ne2+ $16 {[%emt 0:02:09]} 19. Kh1 {[%emt 0:00:48][%cal Od3d4]} Re5 {[%emt 0:01:01] [#]} 20. d4 $1 {[%emt 0:04:16]} Rxh5 {[%emt 0:07:01][%cal Rh5h3]} 21. Bxe2 {[%emt 0:02:09]} Rxh3+ {[%emt 0:00:24]} 22. Kg1 {[%emt 0:00:00]} h5 {[%emt 0:03:42] [#]} 23. Rg5 {[%emt 0:01:22]} ({Stronger than} 23. Bg5 Qf5 24. Rg3 fxe2 $17 (24... Rxg3+ 25. fxg3 Qxg5 26. Bxf3 $15)) 23... fxe2 {[%emt 0:00:44]} 24. Qxe2 {[%emt 0:00:02]} Qxd4 {[%emt 0:00:31]} 25. Qe5 {[%emt 0:01:06] Really sharp!} (25. Re1 {seems wilder.} Rd8 26. Kg2 Rh4 27. Be3) 25... Qxe5 {[%emt 0:04:41]} 26. Rxe5 {[%emt 0:00:01]} Rd8 {[%emt 0:00:30]} (26... f6 $142 27. Rd5 Rh4) 27. Be3 {[%emt 0:01:45]} Kf8 {[%emt 0:01:17] Prevents Re7} (27... Rh4 $16 28. Rb1 b6) 28. Kg2 {[%emt 0:05:03]} Rh4 {[%emt 0:03:19]} 29. Kg3 {[%emt 0:00:02]} Rg4+ {[%emt 0:01:31]} 30. Kf3 {[%emt 0:00:33]} Rh4 {[%emt 0:04:07]} 31. Rb1 {[%emt 0:19:26]} b6 {[%emt 0:00:38]} 32. c6 {[%emt 0:02:52]} (32. Rb3 $16) 32... f6 $14 {[%emt 0:08:30]} 33. Re4 {[%emt 0:00:10]} ({White should play} 33. Rf5 $1 $14) 33... Rxe4 $11 {[%emt 0:00:12]} 34. Kxe4 {[%emt 0:00:01][%mdl 4096] Endgame. KRB-KR} g5 {[%emt 0:02:53] Repels Bf4} (34... Rd6 $11 {remains equal.}) 35. f4 {[%emt 0:04:14]} Re8+ {[%emt 0:01:54]} 36. Kf3 {[%emt 0:04:11] White is more active.} (36. Kd3 $1 $14 Rd8+ 37. Ke2) 36... g4+ {[%emt 0:00:48]} 37. Kf2 {[%emt 0:00:00]} Re6 {[%emt 0:00:35]} 38. Rc1 {[%emt 0:00:01]} Ke7 {[%emt 0:02:52]} 39. f5 {[%emt 0:02:49]} Re5 {[%emt 0:00:20]} 40. Rd1 {[%emt 0:00:01] Hoping for Rd7+.} Rxf5+ {[%emt 0:00:50]} 41. Ke2 {[%emt 0:01:53]} Ke6 {[%emt 0:03:26]} 42. Rd7 {[%emt 0:00:19]} h4 {[%emt 0:00:48]} 43. Rxc7 {[%emt 0:01:10][%cal Oc7h7]} Kd6 {[%emt 0:00:07]} (43... Ra5 44. Rh7 Rxa2+ 45. Kd3 Ra3+ 46. Kd2 $11) 44. Rxa7 {[%emt 0:00:42] aiming for c7.} Kxc6 {[%emt 0:00:11]} 45. Ra4 {[%emt 0:00:29]} Ra5 {[%emt 0:01:23]} 46. Rc4+ {[%emt 0:00:34]} (46. Rxg4 {simplifies} Rxa2+ 47. Bd2 b5 48. Rxh4 Kd5 49. Kd3) 46... Kd5 {[%emt 0:00:16]} 47. Rd4+ {[%emt 0:00:27]} (47. Rxg4 {simplifies} Rxa2+ 48. Kf3 Rb2 49. Rxh4 b5 50. Rf4) 47... Ke5 {[%emt 0:00:41]} 48. a4 {[%emt 0:00:31]} (48. Rxg4 $5 {[%cal Re3d4]} Rxa2+ 49. Bd2 $11) 48... b5 {[%emt 0:07:29] The position is equal.} 49. axb5 {[%emt 0:00:02] Rb4 is the strong threat.} Ra2+ $1 {[%emt 0:04:46]} 50. Kf1 {[%emt 0:00:56]} h3 {[%emt 0:00:31]} 51. Rb4 {[%emt 0:00:30]} Kd5 {[%emt 0:05:13] ( -> ...h2)} (51... h2 $5 52. Bf4+ $8 Kd5 53. Bxh2 Rxh2 $11) 52. Bf4 {[%emt 0:00:31] Threatens to win with b6.} h2 {[%emt 0:01:13]} 53. Bxh2 {[%emt 0:00:08]} Rxh2 {[%emt 0:00:02] KR-KR} 54. b6 {[%emt 0:00:09]} Rh8 {[%emt 0:00:11]} 55. Rxg4 {[%emt 0:00:21]} Rb8 {[%emt 0:00:08]} 56. Rb4 {[%emt 0:00:12]} Kc5 {[%emt 0:00:06]} 57. Rb1 {[%emt 0:00:04]} Rxb6 {[%emt 0:00:07]} 58. Rxb6 {[%emt 0:00:04]} Kxb6 {[%emt 0:00:07] KP-K} 59. Kf2 {[%emt 0:00:08]} Kc5 {[%emt 0:00:02][%cal Bb6c5,Bc5d5,Bd5e6,Be6f6,Bf6g5,Bg5f5,Bf5e4][%mdl 32]} 60. Kf3 {[%emt 0:00:01]} Kd5 {[%emt 0:00:01]} 61. Kf4 {[%emt 0:00:15]} Ke6 {[%emt 0:00:03]} 62. Ke4 {[%emt 0:00:05]} f5+ {[%emt 0:00:02]} 63. Kf4 {[%emt 0:00:01]} Kf6 {[%emt 0:00:01]} 64. Kf3 {[%emt 0:00:13]} Kg5 {[%emt 0:00:04]} 65. Kg3 {[%emt 0:00:03]} f4+ {[%emt 0:00:03]} 66. Kf3 {[%emt 0:00:03][%cal Bg3f3,Bf3f2,Bf2e2][%mdl 32]} Kf5 {[%emt 0:00:03]} 67. Kf2 {[%emt 0:00:03]} Ke4 {[%emt 0:00:03]} 68. Ke2 {[%emt 0:00:06] Black defended with fortune.   Weighted Error Value: White=0.17 (very precise) /Black=0.16 (very precise) .  Mistake:       	White=5     	Black=7      Inaccurate:     	White=3     	Black=1      OK:         	White=19    	Black=28     Best:        	White=8     	Black=6      Strong:       	White=2     	Black=2} 1/2-1/2

[Event "Baku Open 2024"]
[Site "Baku"]
[Date "2024.07.03"]
[Round "5.21"]
[White "Zverev, Lev"]
[Black "Bizhigitov, Zhangir"]
[Result "1-0"]
[ECO "C55"]
[WhiteElo "2416"]
[BlackElo "2212"]
[Annotator "RC"]
[PlyCount "81"]
[EventDate "2024.06.29"]
[EventType "swiss"]
[EventCountry "AZE"]
[SourceTitle "playchess.com"]
[Source "ChessBase"]
[SourceQuality "1"]
[TimeControl "5400+30"]

1. e4 {[%emt 0:03:16]} e5 {[%emt 0:00:42]} 2. Nf3 {[%emt 0:00:31]} Nc6 {[%emt 0:00:13]} 3. Bc4 {[%emt 0:00:08]} Nf6 {[%emt 0:01:41]} 4. d3 {[%emt 0:00:07]} h6 {[%emt 0:00:22]} 5. O-O {[%emt 0:00:22]} d6 {[%emt 0:00:53]} 6. c3 {[%emt 0:00:19]} g5 {[%emt 0:01:18]} 7. a4 {[%emt 0:00:12]} Bg7 {[%emt 0:00:46]} 8. a5 {[%emt 0:00:15]} O-O {[%emt 0:03:30]} 9. Nbd2 {[%emt 0:05:02]} Ne7 {[%emt 0:03:09]} 10. Re1 {[%emt 0:18:35]} Ng6 {[%emt 0:05:53]} 11. Nf1 {[%emt 0:05:40]} c6 {[%emt 0:12:46]} 12. h3 {[%emt 0:13:27]} d5 {[%emt 0:10:58]} 13. Bb3 {[%emt 0:00:11]} Re8 {[%emt 0:04:45]} 14. Ng3 {[%emt 0:05:51]} Nf4 {[%emt 0:12:40]} 15. d4 {[%emt 0:44:04]} exd4 {[%emt 0:12:33]} 16. e5 {[%emt 0:00:00]} Ne4 {[%emt 0:03:26]} 17. cxd4 {[%emt 0:00:00]} Nxg3 {[%emt 0:01:58]} 18. fxg3 {[%emt 0:00:00]} Ng6 {[%emt 0:01:39]} 19. Bc2 {[%emt 0:00:00]} Be6 {[%emt 0:03:14]} 20. b4 {[%emt 0:00:00]} Nf8 {[%emt 0:06:06]} 21. Qd3 {[%emt 0:00:00]} f5 {[%emt 0:02:01]} 22. h4 {[%emt 0:00:00]} g4 {[%emt 0:08:03]} 23. Nh2 {[%emt 0:00:00]} b6 {[%emt 0:01:31]} 24. Ba3 {[%emt 0:00:00]} h5 {[%emt 0:00:48]} 25. Nf1 {[%emt 0:00:00]} Ng6 {[%emt 0:00:36]} 26. Ne3 {[%emt 0:00:00]} Rf8 {[%emt 0:00:19]} 27. Rf1 {[%emt 0:00:00]} Ne7 {[%emt 0:00:50]} 28. Rf2 {[%emt 0:00:00]} Rf7 {[%emt 0:00:46]} 29. Raf1 {[%emt 0:00:00]} Bh6 {[%emt 0:00:29]} 30. b5 {[%emt 0:00:00]} Bxe3 {[%emt 0:00:26]} 31. Qxe3 {[%emt 0:00:00]} cxb5 {[%emt 0:00:18]} 32. Qh6 {[%emt 0:00:00]} Qd7 {[%emt 0:00:43]} 33. Bxe7 {[%emt 0:00:00]} Qxe7 {[%emt 0:00:22]} 34. Bxf5 {[%emt 0:00:00]} Bxf5 {[%emt 0:00:06]} 35. Rxf5 {[%emt 0:00:00]} Rh7 {[%emt 0:01:01]} 36. Qg6+ {[%emt 0:00:00]} Rg7 {[%emt 0:00:04]} 37. Qxh5 {[%emt 0:00:00]} b4 {[%emt 0:00:05]} 38. axb6 {[%emt 0:00:00]} axb6 {[%emt 0:00:13]} 39. Rf6 {[%emt 0:00:00]} Rb8 {[%emt 0:01:39]} 40. Rh6 {[%emt 0:00:07]} Rh7 {[%emt 0:00:04]} 41. Rff6 {[%emt 0:00:12]} 1-0

[Event "Baku Open 2024"]
[Site "Baku"]
[Date "2024.07.03"]
[Round "5.22"]
[White "Talibov, Shiroghlan"]
[Black "Saravana, Krishnan P."]
[Result "1-0"]
[ECO "C77"]
[WhiteElo "2361"]
[BlackElo "2236"]
[Annotator "TA"]
[PlyCount "73"]
[EventDate "2024.06.29"]
[EventType "swiss"]
[EventCountry "AZE"]
[SourceTitle "playchess.com"]
[Source "ChessBase"]
[SourceQuality "1"]
[TimeControl "5400+30"]

{[%evp 11,73,14,27,13,17,14,18,27,24,16,23,18,23,11,18,12,57,60,57,59,47,55,81,68,81,82,77,77,87,69,81,77,89,86,155,164,157,159,150,131,130,116,195,86,180,132,158,158,311,308,407,412,450,431,820,833,1736,1685,29990,29971,29993,29994,29995,29996]} 1. e4 {[%emt 0:00:01]} e5 {[%emt 0:00:43]} 2. Nf3 {[%emt 0:00:06]} Nc6 {[%emt 0:00:14]} 3. Bb5 {[%emt 0:00:29]} a6 {[%emt 0:00:21]} 4. Ba4 {[%emt 0:00:05]} Nf6 {[%emt 0:00:26]} 5. Nc3 {[%emt 0:00:06]} b5 {[%emt 0:02:26]} 6. Bb3 {[%emt 0:00:08]} Be7 {[%emt 0:01:48]} 7. a4 {[%emt 0:01:16]} Rb8 {[%emt 0:02:09]} 8. axb5 {[%emt 0:00:09]} axb5 {[%emt 0:00:44]} 9. d3 {[%emt 0:03:02] The position is equal.} d6 {[%emt 0:03:38]} 10. h3 {[%emt 0:03:57]} O-O {[%emt 0:01:34]} 11. Nd5 {[%emt 0:02:18]} Nxd5 {[%emt 0:07:46]} 12. Bxd5 {[%emt 0:04:10]} Nb4 {[%emt 0:00:14]} 13. Bb3 {[%emt 0:00:06]} Be6 {[%emt 0:00:28]} 14. Bxe6 {[%emt 0:00:48]} fxe6 {[%emt 0:00:03]} 15. c3 {[%emt 0:00:37] Against c5} Nc6 {[%emt 0:00:30]} 16. O-O {[%emt 0:00:14]} Qe8 {[%emt 0:02:07]} 17. Ra6 {[%emt 0:02:55]} Kh8 {[%emt 0:04:34]} 18. Be3 {[%emt 0:04:35]} Bf6 {[%emt 0:09:03]} 19. Qb3 {[%emt 0:08:08]} Qd7 {[%emt 0:01:44]} 20. d4 {[%emt 0:02:30]} d5 {[%emt 0:12:35]} 21. Rd1 {[%emt 0:11:51]} exd4 {[%emt 0:02:42]} 22. cxd4 {[%emt 0:00:28]} (22. Bxd4 Nxd4 23. Nxd4 Qc8 $14) 22... dxe4 {[%emt 0:10:05] [#]} (22... Rfe8 $142) 23. Ne5 $1 $16 {[%emt 0:00:05][%mdl 512]} Bxe5 {[%emt 0:00:09]} 24. dxe5 {[%emt 0:00:06]} Qe8 {[%emt 0:00:10]} 25. Qc3 $36 {[%emt 0:04:43][%mdl 2048] Keeping Black busy. Black is weak on the dark squares} Ne7 {[%emt 0:07:30]} 26. Rxe6 {[%emt 0:01:53][%cal Oe3c5] aiming for Bc5! White has more active pieces.} (26. Qxc7 $6 Nd5 27. Qc1 Rc8 $11) 26... Qh5 {[%emt 0:07:47]} (26... Qf7 $16 27. Rxe7 Qxe7) 27. Re1 {[%emt 0:15:09]} (27. Rd7 $18 b4 28. Qd4 (28. Qxc7 Nf5 $18)) 27... Nf5 {[%emt 0:05:52]} (27... Qf7 $16 {is a better defense.} 28. Ra6 Nd5) 28. Qc2 {[%emt 0:08:07]} (28. Qxc7 Nxe3 29. Rxe3 Rbc8 $11) ({Better is} 28. Bc5 $18 Rfd8 29. Qc2 (29. Rxe4 Qd1+ 30. Re1 b4 $18)) 28... Qh4 {[%emt 0:06:54]} 29. Bc5 {[%emt 0:04:10]} (29. Qxc7 $2 {perishes.} Nxe3 $19) 29... Rfd8 $2 {[%emt 0:02:31]} (29... e3 $16) 30. Rxe4 $18 {[%emt 0:01:41]} ({Resist} 30. Qxe4 Rd1 31. Qe2 (31. Qxf5 Rxe1+ 32. Kh2 Rg8 $14) 31... Rxe1+ 32. Qxe1 h6 $18) 30... Qh5 {[%emt 0:01:07]} 31. Rf4 {[%emt 0:01:42]} Nh4 {[%emt 0:01:45]} 32. Qe4 {[%emt 0:02:21]} Qd1+ {[%emt 0:01:46]} (32... Ng6 $142) 33. Kh2 {[%emt 0:00:01]} Ng6 {[%emt 0:00:41]} 34. Rxg6 {[%emt 0:00:33]} hxg6 {[%emt 0:00:26]} 35. Rh4+ {[%emt 0:00:07] White mates.} Kg8 {[%emt 0:00:07]} 36. Qxg6 {[%emt 0:00:06][%cal Rg6e6]} Qd5 {[%emt 0:01:49] [#]} 37. e6 $1 {[%emt 0:00:12] Weighted Error Value: White=0.11 (very precise) /Black=0.46.  Mistake:       	White=2     	Black=5      Inaccurate:     	---       	Black=4      OK:         	White=10    	Black=7      Best:        	White=2     	---        Brilliant:      	White=1     	---} 1-0

[Event "Baku Open 2024"]
[Site "Baku"]
[Date "2024.07.03"]
[Round "5.23"]
[White "Suleymanli, Suleyman"]
[Black "Hamidov, Allahverdi"]
[Result "1/2-1/2"]
[ECO "E05"]
[WhiteElo "2262"]
[BlackElo "2307"]
[Annotator "TA"]
[PlyCount "97"]
[EventDate "2024.06.29"]
[EventType "swiss"]
[EventCountry "AZE"]
[SourceTitle "playchess.com"]
[Source "ChessBase"]
[SourceQuality "1"]
[TimeControl "5400+30"]

{[%evp 18,97,3,10,22,15,11,17,3,14,0,9,42,43,42,40,35,51,58,18,7,10,12,3,0,0,0,-15,0,0,0,0,0,0,-4,-7,0,0,0,0,0,0,0,0,0,0,0,0,0,0,0,0,0,0,0,0,0,0,0,0,0,0,0,0,0,0,0,-38,-20,-38,-38,-90,-90,-90,-90,-90,-90,-97,-8,-8,-8,-8]} 1. Nf3 {[%emt 0:00:01]} Nf6 {[%emt 0:00:18]} 2. g3 {[%emt 0:00:05]} d5 {[%emt 0:00:07]} 3. Bg2 {[%emt 0:00:04]} e6 {[%emt 0:00:04]} 4. O-O {[%emt 0:00:06]} Be7 {[%emt 0:00:06]} 5. d4 {[%emt 0:00:03]} O-O {[%emt 0:00:05]} 6. c4 {[%emt 0:00:01]} dxc4 {[%emt 1:32:50]} 7. Qa4 {[%emt 0:00:02]} a6 {[%emt 0:00:00]} 8. Qxc4 {[%emt 0:00:04]} b5 {[%emt 0:00:00]} 9. Qc2 {[%emt 0:00:02]} Bb7 {[%emt 0:00:00]} 10. Bd2 {[%emt 0:00:03]} Ra7 {[%emt 0:00:00]} 11. Rc1 {[%emt 0:02:18]} Be4 {[%emt 0:00:00]} 12. Qb3 {[%emt 0:01:31]} Nc6 {[%emt 0:00:00][%cal Oe4f3] Prevents Bb4.} 13. e3 {[%emt 0:00:29]} Qa8 {[%emt 0:00:00]} 14. Qd1 {[%emt 0:00:07]} Nb4 {[%emt 0:00:00]} 15. Bxb4 {[%emt 0:01:13]} Bxb4 {[%emt 0:00:00]} 16. a3 {[%emt 0:01:36]} Bd6 {[%emt 0:00:00]} 17. Nbd2 {[%emt 0:00:14]} Bd5 {[%emt 0:00:00]} 18. Qf1 {[%emt 0:22:37]} Rc8 {[%emt 0:00:00]} 19. Ng5 {[%emt 0:15:40]} h6 {[%emt 0:00:00]} 20. Bxd5 {[%emt 0:05:02]} Qxd5 {[%emt 0:00:00]} 21. Ngf3 {[%emt 0:00:02]} c5 {[%emt 0:00:00]} 22. Qe2 {[%emt 0:01:51]} Qa8 {[%emt 0:00:00]} 23. dxc5 {[%emt 0:09:45]} Rxc5 {[%emt 0:00:00]} 24. Rxc5 {[%emt 0:03:51]} Bxc5 {[%emt 0:00:00]} 25. Rc1 {[%emt 0:02:27]} Rc7 {[%emt 0:00:00]} 26. Qd3 {[%emt 0:03:41]} Bb6 {[%emt 0:00:00]} 27. Rxc7 {[%emt 0:00:34]} Bxc7 {[%emt 0:00:00]} 28. Qc2 {[%emt 0:01:08]} Bb6 {[%emt 0:00:00]} 29. Ne5 {[%emt 0:03:22]} Qb7 {[%emt 0:00:00]} 30. Nc6 {[%emt 0:04:09]} Qc7 {[%emt 0:00:00]} 31. Nf3 {[%emt 0:02:03]} Qd6 {[%emt 0:00:00]} 32. Nfe5 {[%emt 0:02:00]} Nd7 {[%emt 0:00:00]} 33. Nxd7 {[%emt 0:03:35]} Qxd7 $11 {[%emt 0:00:00][%mdl 4096] Endgame. KQB-KQN} 34. Ne5 {[%emt 0:01:27]} Qc7 {[%emt 0:01:41]} 35. Qe4 {[%emt 0:00:12]} a5 {[%emt 0:02:15]} 36. b3 {[%emt 0:08:16][%cal Bb2b3,Bb3a4][%mdl 32]} Bc5 {[%emt 0:02:51]} 37. a4 {[%emt 0:01:20]} bxa4 {[%emt 0:00:38]} (37... f5 $5 38. Qa8+ $8 Kh7 $11) 38. bxa4 {[%emt 0:00:02]} Bb4 {[%emt 0:01:26]} 39. Kg2 {[%emt 0:02:59]} f5 {[%emt 0:03:06]} 40. Qa8+ {[%emt 0:01:26]} Kh7 {[%emt 0:00:02]} 41. Nc6 {[%emt 0:00:43]} Qd7 {[%emt 0:00:18] [#] Inhibits Qe8. Hoping for ...Qd5+.} 42. Nd4 {[%emt 0:03:53]} (42. Nxa5 Qxa4 43. Qc6 Qxa5 $19) 42... Qxa4 {[%emt 0:01:04] Strongly threatening ...Qd7.} 43. Nxe6 {[%emt 0:01:13]} Qd7 {[%emt 0:00:44]} 44. Nd4 {[%emt 0:00:34]} ({White should play} 44. Nf8+ $1 $15 Bxf8 45. Qxf8) 44... a4 $17 {[%emt 0:00:53]} 45. g4 {[%emt 0:00:30]} fxg4 {[%emt 0:02:58] [#] Threatens to win with ...g6.} 46. Qe4+ {[%emt 0:00:02]} g6 {[%emt 0:00:08] aiming for ...a3.} 47. Nc6 {[%emt 0:00:38]} Bd6 {[%emt 0:00:38]} (47... Qb7 $17 {...a3 would now be deadly.} 48. Kg1 h5) 48. Qxa4 $11 {[%emt 0:00:09]} h5 {[%emt 0:00:08]} 49. Qe4 {[%emt 0:01:01] Weighted Error Value: White=0.04 (flawless) /Black=0.05 (flawless) .  Mistake:       	White=1     	Black=1      Inaccurate:     	White=2     	Black=1      OK:         	White=20    	Black=21     Best:        	White=1     	Black=4} 1/2-1/2